fUSD/lending_fUSD_20260112
["ID","MTS","AMOUNT","RATE_DAILY","PERIOD"]
[401460986,1768240242333,-500.0,0.00017067,2]
[401460987,1768240242344,-500.0,0.00017067,2]
[401460988,1768240242353,-29277.16732341,0.00017067,2]
[401460989,1768240242363,-166.96227274,0.00017073,2]
[401460990,1768240242373,-500.0,0.00017073,2]
[401460991,1768240242382,-500.0,0.00017073,2]
[401460992,1768240242392,-500.0,0.00017073,2]
[401460993,1768240242401,-500.0,0.00017073,2]
[401460994,1768240242411,-500.0,0.00017073,2]
[401460995,1768240242421,-500.0,0.00017073,2]
[401460996,1768240242431,-500.0,0.00017073,2]
[401460997,1768240242441,-500.0,0.00017073,2]
[401460998,1768240242451,-500.0,0.00017073,2]
[401460999,1768240242461,-500.0,0.00017073,2]
[401461000,1768240242470,-503.84192068,0.00017073,2]
[401461001,1768240242480,-500.0,0.00017073,2]
[401461002,1768240242490,-500.0,0.00017073,2]
[401461003,1768240242499,-500.0,0.00017073,2]
[401461004,1768240242509,-500.0,0.00017073,2]
[401461005,1768240242518,-500.0,0.00017073,2]
[401461006,1768240242527,-486.88056707,0.00017073,2]
[401461008,1768240242537,-500.0,0.00017073,2]
[401461010,1768240242547,-500.0,0.00017073,2]
[401461011,1768240242556,-162.59101262,0.00017073,2]
[401461013,1768240242566,-500.0,0.00017073,2]
[401461015,1768240242575,-500.19211788,0.00017073,2]
[401461017,1768240242585,-500.0,0.00017073,2]
[401461019,1768240242594,-500.0,0.00017073,2]
[401461022,1768240242603,-503.00247421,0.00017073,2]
[401461025,1768240242613,-169.17232811,0.00017073,2]
[401461027,1768240242622,-163.4155148,0.00017073,2]
[401461029,1768240242631,-500.38035534,0.00017073,2]
[401461031,1768240242640,-501.85422751,0.00017073,2]
[401461033,1768240242650,-500.32712274,0.00017073,2]
[401461035,1768240242658,-500.0,0.00017073,2]
[401461036,1768240242668,-500.0,0.00017073,2]
[401461037,1768240242678,-500.84213941,0.00017073,2]
[401461038,1768240242687,-647.42016729,0.00017073,2]
[401461039,1768240242696,-500.53829083,0.00017073,2]
[401461040,1768240242706,-500.0,0.00017073,2]
[401461041,1768240242715,-500.0,0.00017073,2]
[401461042,1768240242724,-500.0,0.00017073,2]
[401461043,1768240242733,-500.26791262,0.00017073,2]
[401461044,1768240242743,-500.0,0.00017073,2]
[401461045,1768240242752,-150.0,0.00017073,2]
[401461046,1768240242762,-150.0,0.00017076,2]
[401461047,1768240242772,-150.0,0.00017079,2]
[401461048,1768240242782,-150.0,0.00017083,2]
[401461049,1768240242791,-150.0,0.000171,2]
[401461050,1768240242802,-150.0,0.000171,2]
[401461051,1768240242812,-150.0,0.000171,2]
[401461052,1768240242822,-150.0,0.000171,2]
[401461053,1768240242831,-150.0,0.000171,2]
[401461054,1768240242841,-150.0,0.000171,2]
[401461055,1768240242851,-150.0,0.000171,2]
[401461056,1768240242860,-150.0,0.000171,2]
[401461057,1768240242869,-150.0,0.00017117,2]
[401461058,1768240242880,-150.0,0.00017121,2]
[401461059,1768240242890,-469.78735424,0.00017122,2]
[401461060,1768240242901,-150.0,0.00017124,2]
[401461061,1768240242910,-150.0,0.00017127,2]
[401461062,1768240242921,-3736.20418754,0.00017134,2]
[401461063,1768240242931,-150.0,0.00017143,2]
[401461064,1768240242942,-150.0,0.0001715,2]
[401461065,1768240242955,-150.0,0.00017151,2]
[401461066,1768240242967,-166.66,0.00017153,2]
[401461067,1768240242975,-150.0,0.00017155,2]
[401461068,1768240242986,-500.0,0.00017155,2]
[401461069,1768240242995,-391.13971577,0.00017155,2]
[401461070,1768240243005,-2325.3,0.00017158,2]
[401461071,1768240243014,-150.0,0.00017163,2]
[401461072,1768240243023,-150.0,0.00017173,2]
[401461073,1768240243033,-150.0,0.00017182,2]
[401461074,1768240243042,-150.0,0.00017182,2]
[401461075,1768240243051,-150.0,0.00017185,2]
[401461076,1768240243060,-150.0,0.00017186,2]
[401461077,1768240243070,-1000.0,0.00017191,2]
[401461078,1768240243079,-226.71,0.00017194,2]
[401461079,1768240243089,-150.0,0.000172,2]
[401461080,1768240243098,-150.0,0.000172,2]
[401461081,1768240243107,-150.0,0.00017205,2]
[401461082,1768240243117,-150.0,0.00017209,2]
[401461083,1768240243127,-150.0,0.00017219,2]
[401461084,1768240243135,-150.0,0.00017222,2]
[401461085,1768240243144,-150.0,0.00017229,2]
[401461086,1768240243153,-150.0,0.00017236,2]
[401461087,1768240243162,-15566.51825215,0.00017242,2]
[401461088,1768240243171,-6869.79911167,0.00017242,2]
[401461089,1768240243181,-150.0,0.00017247,2]
[401461090,1768240243190,-150.0,0.0001725,2]
[401461091,1768240243199,-150.0,0.0001725,2]
[401461092,1768240243208,-150.0,0.00017253,2]
[401461093,1768240243217,-881.51182052,0.00017255,2]
[401461094,1768240243227,-150.0,0.00017264,2]
[401461095,1768240243235,-150.0,0.00017264,2]
[401461096,1768240243245,-150.0,0.0001727,2]
[401461097,1768240243254,-150.0,0.00017271,2]
[401461098,1768240243264,-150.0,0.00017287,2]
[401461099,1768240243274,-150.0,0.00017288,2]
[401461100,1768240243284,-150.0,0.00017291,2]
[401461101,1768240243294,-150.0,0.000173,2]
[401461102,1768240243305,-150.0,0.00017314,2]
[401461103,1768240243315,-150.0,0.00017318,2]
[401461104,1768240243325,-150.0,0.00017319,2]
[401461105,1768240243335,-150.0,0.00017321,2]
[401461106,1768240243343,-150.0,0.00017325,2]
[401461107,1768240243353,-3736.20418754,0.00017325,2]
[401461108,1768240243363,-150.0,0.0001733,2]
[401461109,1768240243373,-150.0,0.00017345,2]
[401461111,1768240243382,-150.0,0.00017345,2]
[401461114,1768240243391,-150.0,0.0001735,2]
[401461116,1768240243401,-150.0,0.0001735,2]
[401461118,1768240243411,-151.0,0.00017352,2]
[401461120,1768240243420,-553.74,0.00017353,2]
[401461122,1768240243429,-553.74,0.00017353,2]
[401461123,1768240243439,-553.74,0.00017353,2]
[401461124,1768240243448,-67261.26788675,0.00017354,2]
[401461125,1768240243457,-553.74,0.00017354,2]
[401461126,1768240243467,-109414.41947722,0.00017355,2]
[401461127,1768240243476,-154525.81555305,0.00017355,2]
[401461128,1768240243486,-156588.71838717,0.00017355,2]
[401461129,1768240243537,-304.0,0.00017355,2]
[401461130,1768240243548,-500.0,0.00017355,2]
[401461131,1768240243559,-847.97755342,0.00017355,2]
[401461132,1768240243722,-420.86114321,0.00017355,2]
[401461133,1768240243734,-473.93335833,0.00017355,2]
[401461134,1768240243745,-3391.7295467,0.00017355,2]
[401461135,1768240243757,-472.8766523,0.00017355,2]
[401461136,1768240243768,-1079.01747066,0.00017355,2]
[401461137,1768240243825,-2911.12206947,0.00017355,2]
[401461138,1768240243840,-15487.99999998,0.00017355,2]
[401461139,1768240243850,-8729.85355906,0.00017355,2]
[401461140,1768240243861,-922.18333418,0.00017355,2]
[401461141,1768240243872,-500.0,0.00017355,2]
[401461142,1768240243887,-425.63,0.00017355,2]
[401461143,1768240244102,-151.0,0.00015826,2]
[401461144,1768240244112,-1078.78115562,0.00017014,2]
[401461145,1768240244125,-21.82298698,0.00017014,2]
[401461146,1768240244134,-2282.60026575,0.00017355,2]
[401461147,1768240244145,-927.77,0.00017355,2]
[401461148,1768240244156,-1743.75217009,0.00017355,2]
[401461149,1768240244186,-29.31937029,0.00017355,2]
[401461150,1768240244197,-261.98000005,0.00017355,2]
[401461151,1768240244208,-688.7483796,0.00017355,2]
[401461152,1768240244219,-963.07793974,0.00017355,2]
[401461153,1768240244229,-150.0,0.00017355,2]
[401461154,1768240244239,-162.447438,0.00017355,2]
[401461155,1768240244248,-151.0,0.00017355,2]
[401461156,1768240244257,-153.895125,0.00017355,2]
[401461157,1768240244267,-247.183117,0.00017355,2]
[401461158,1768240244277,-151.0,0.00017355,2]
[401461159,1768240244286,-151.0,0.00017355,2]
[401461160,1768240244296,-151.0,0.00017355,2]
[401461161,1768240244306,-151.0,0.00017355,2]
[401461162,1768240244316,-151.0,0.00017355,2]
[401461163,1768240244326,-151.0,0.00017355,2]
[401461165,1768240244336,-151.0,0.00017355,2]
[401461167,1768240244345,-151.0,0.00017355,2]
[401461169,1768240244355,-152.962761,0.00017355,2]
[401461171,1768240244364,-152.962761,0.00017355,2]
[401461173,1768240244373,-152.962761,0.00017355,2]
[401461175,1768240244382,-152.962761,0.00017355,2]
[401461177,1768240244392,-151.0,0.00017355,2]
[401461179,1768240244401,-174.931358,0.00017355,2]
[401461181,1768240244410,-151.0,0.00017355,2]
[401461183,1768240244420,-151.0,0.00017355,2]
[401461185,1768240244429,-172.359513,0.00017355,2]
[401461187,1768240244439,-151.0,0.00017355,2]
[401461189,1768240244449,-151.0,0.00017355,2]
[401461191,1768240244458,-151.0,0.00017355,2]
[401461193,1768240244468,-151.0,0.00017355,2]
[401461195,1768240244477,-151.0,0.00017355,2]
[401461197,1768240244486,-178.723506,0.00017355,2]
[401461199,1768240244495,-151.0,0.00017355,2]
[401461201,1768240244504,-151.0,0.00017355,2]
[401461203,1768240244514,-151.0,0.00017355,2]
[401461205,1768240244524,-151.0,0.00017355,2]
[401461207,1768240244533,-151.0,0.00017355,2]
[401461232,1768240244542,-151.0,0.00017355,2]
[401461236,1768240244789,-242.100876,0.00017355,2]
[401461238,1768240244798,-151.0,0.00017355,2]
[401461240,1768240244808,-151.0,0.00017355,2]
[401461242,1768240244817,-151.0,0.00017355,2]
[401461244,1768240244826,-151.0,0.00017355,2]
[401461246,1768240244840,-151.0,0.00017355,2]
[401461248,1768240244852,-151.0,0.00017355,2]
[401461250,1768240244861,-151.0,0.00017355,2]
[401461252,1768240244870,-151.0,0.00017355,2]
[401461254,1768240244880,-151.0,0.00017355,2]
[401461256,1768240244889,-151.0,0.00017355,2]
[401461258,1768240244898,-151.0,0.00017355,2]
[401461260,1768240244907,-151.0,0.00017355,2]
[401461262,1768240244916,-151.0,0.00017355,2]
[401461264,1768240244924,-162.036793,0.00017355,2]
[401461266,1768240244935,-151.0,0.00017355,2]
[401461268,1768240244946,-151.0,0.00017355,2]
[401461269,1768240244955,-151.0,0.00017355,2]
[401461271,1768240244965,-403.219361,0.00017355,2]
[401461273,1768240244974,-151.0,0.00017355,2]
[401461275,1768240244984,-403.219361,0.00017355,2]
[401461278,1768240244994,-151.0,0.00017355,2]
[401461280,1768240245003,-403.219361,0.00017355,2]
[401461282,1768240245013,-151.0,0.00017355,2]
[401461284,1768240245023,-151.0,0.00017355,2]
[401461286,1768240245032,-403.219361,0.00017355,2]
[401461288,1768240245041,-151.0,0.00017355,2]
[401461289,1768240245051,-151.0,0.00017355,2]
[401461291,1768240245061,-151.0,0.00017355,2]
[401461293,1768240245070,-151.0,0.00017355,2]
[401461295,1768240245079,-151.0,0.00017355,2]
[401461297,1768240245089,-154.2514,0.00017355,2]
[401461299,1768240245099,-151.0,0.00017355,2]
[401461301,1768240245108,-151.0,0.00017355,2]
[401461303,1768240245117,-154.2514,0.00017355,2]
[401461305,1768240245127,-151.0,0.00017355,2]
[401461307,1768240245135,-421.950315,0.00017355,2]
[401461309,1768240245146,-154.2514,0.00017355,2]
[401461311,1768240245155,-421.950315,0.00017355,2]
[401461313,1768240245164,-154.2514,0.00017355,2]
[401461317,1768240245173,-151.0,0.00017355,2]
[401461321,1768240245182,-421.950315,0.00017355,2]
[401461326,1768240245191,-151.0,0.00017355,2]
[401461328,1768240245201,-421.950315,0.00017355,2]
[401461330,1768240245210,-151.0,0.00017355,2]
[401461331,1768240245218,-771.304416,0.00017355,2]
[401461334,1768240245228,-771.304416,0.00017355,2]
[401461338,1768240245237,-771.304416,0.00017355,2]
[401461341,1768240245246,-771.304416,0.00017355,2]
[401461343,1768240245256,-151.0,0.00017355,2]
[401461346,1768240245265,-151.0,0.00017355,2]
[401461348,1768240245274,-151.0,0.00017355,2]
[401461350,1768240245283,-151.0,0.00017355,2]
[401461352,1768240245293,-151.0,0.00017355,2]
[401461354,1768240245302,-151.0,0.00017355,2]
[401461356,1768240245311,-151.0,0.00017355,2]
[401461358,1768240245321,-172.73046,0.00017355,2]
[401461360,1768240245330,-151.0,0.00017355,2]
[401461362,1768240245339,-283.642245,0.00017355,2]
[401461364,1768240245348,-268.281214,0.00017355,2]
[401461366,1768240245357,-874.374948,0.00017355,2]
[401461369,1768240245367,-874.374948,0.00017355,2]
[401461370,1768240245377,-151.0,0.00017355,2]
[401461373,1768240245387,-874.374948,0.00017355,2]
[401461375,1768240245396,-874.374948,0.00017355,2]
[401461377,1768240245406,-151.0,0.00017355,2]
[401461379,1768240245416,-151.0,0.00017355,2]
[401461380,1768240245425,-151.0,0.00017355,2]
[401461382,1768240245434,-151.0,0.00017355,2]
[401461384,1768240245443,-151.0,0.00017355,2]
[401461386,1768240245452,-151.0,0.00017355,2]
[401461389,1768240245463,-151.0,0.00017355,2]
[401461391,1768240245473,-169.265713,0.00017355,2]
[401461393,1768240245483,-413.911364,0.00017355,2]
[401461396,1768240245491,-151.0,0.00017355,2]
[401461397,1768240245502,-151.0,0.00017355,2]
[401461400,1768240245511,-413.911364,0.00017355,2]
[401461401,1768240245520,-413.911364,0.00017355,2]
[401461403,1768240245529,-413.911364,0.00017355,2]
[401461406,1768240245540,-214.616436,0.00017355,2]
[401461409,1768240245549,-168.758337,0.00017355,2]
[401461413,1768240245558,-214.616436,0.00017355,2]
[401461417,1768240245568,-151.0,0.00017355,2]
[401461420,1768240245577,-214.616436,0.00017355,2]
[401461423,1768240245586,-151.0,0.00017355,2]
[401461426,1768240245597,-151.0,0.00017355,2]
[401461430,1768240245606,-214.616436,0.00017355,2]
[401461433,1768240245615,-151.0,0.00017355,2]
[401461436,1768240245624,-303.090355,0.00017355,2]
[401461439,1768240245634,-154.522751,0.00017355,2]
[401461442,1768240245643,-173.280048,0.00017355,2]
[401461445,1768240245652,-380.593723,0.00017355,2]
[401461448,1768240245661,-154.522751,0.00017355,2]
[401461451,1768240245670,-405.045724,0.00017355,2]
[401461454,1768240245679,-303.090355,0.00017355,2]
[401461457,1768240245688,-380.593723,0.00017355,2]
[401461460,1768240245699,-154.522751,0.00017355,2]
[401461463,1768240245708,-405.045724,0.00017355,2]
[401461466,1768240245716,-303.090355,0.00017355,2]
[401461469,1768240245729,-380.593723,0.00017355,2]
[401461471,1768240245739,-151.0,0.00017355,2]
[401461474,1768240245748,-154.522751,0.00017355,2]
[401461477,1768240245757,-303.090355,0.00017355,2]
[401461480,1768240245766,-405.045724,0.00017355,2]
[401461483,1768240245775,-601.216877,0.00017355,2]
[401461487,1768240245785,-380.593723,0.00017355,2]
[401461490,1768240245794,-151.0,0.00017355,2]
[401461493,1768240245804,-405.045724,0.00017355,2]
[401461495,1768240245813,-601.216877,0.00017355,2]
[401461500,1768240245822,-151.0,0.00017355,2]
[401461503,1768240245831,-160.744631,0.00017355,2]
[401461505,1768240245840,-601.216877,0.00017355,2]
[401461508,1768240245850,-601.216877,0.00017355,2]
[401461510,1768240245859,-151.0,0.00017355,2]
[401461513,1768240245868,-151.0,0.00017355,2]
[401461516,1768240245877,-258.755539,0.00017355,2]
[401461519,1768240245886,-151.0,0.00017355,2]
[401461522,1768240245896,-258.755539,0.00017355,2]
[401461526,1768240245906,-151.0,0.00017355,2]
[401461527,1768240245914,-151.0,0.00017355,2]
[401461530,1768240245924,-258.755539,0.00017355,2]
[401461532,1768240245933,-258.755539,0.00017355,2]
[401461533,1768240245945,-151.0,0.00017355,2]
[401461536,1768240245955,-193.890203,0.00017355,2]
[401461539,1768240245965,-151.0,0.00017355,2]
[401461542,1768240245974,-151.0,0.00017355,2]
[401461545,1768240245984,-151.0,0.00017355,2]
[401461548,1768240245993,-796.6404,0.00017355,2]
[401461551,1768240246002,-296.485774,0.00017355,2]
[401461554,1768240246012,-796.6404,0.00017355,2]
[401461557,1768240246021,-296.485774,0.00017355,2]
[401461560,1768240246029,-796.6404,0.00017355,2]
[401461563,1768240246038,-296.485774,0.00017355,2]
[401461566,1768240246047,-151.0,0.00017355,2]
[401461569,1768240246056,-796.6404,0.00017355,2]
[401461572,1768240246065,-296.485774,0.00017355,2]
[401461576,1768240246074,-151.0,0.00017355,2]
[401461578,1768240246083,-151.0,0.00017355,2]
[401461581,1768240246093,-151.0,0.00017355,2]
[401461584,1768240246102,-1847.877127,0.00017355,2]
[401461587,1768240246111,-151.0,0.00017355,2]
[401461590,1768240246120,-151.0,0.00017355,2]
[401461594,1768240246130,-866.607694,0.00017355,2]
[401461597,1768240246139,-1847.877127,0.00017355,2]
[401461600,1768240246148,-151.0,0.00017355,2]
[401461602,1768240246157,-151.0,0.00017355,2]
[401461604,1768240246167,-151.0,0.00017355,2]
[401461606,1768240246177,-866.607694,0.00017355,2]
[401461608,1768240246186,-1847.877127,0.00017355,2]
[401461610,1768240246195,-151.0,0.00017355,2]
[401461612,1768240246204,-151.0,0.00017355,2]
[401461614,1768240246214,-866.607694,0.00017355,2]
[401461616,1768240246223,-1847.877127,0.00017355,2]
[401461618,1768240246232,-151.0,0.00017355,2]
[401461620,1768240246242,-151.0,0.00017355,2]
[401461622,1768240246253,-866.607694,0.00017355,2]
[401461624,1768240246262,-151.0,0.00017355,2]
[401461626,1768240246272,-715.749252,0.00017355,2]
[401461628,1768240246281,-151.0,0.00017355,2]
[401461630,1768240246290,-715.749252,0.00017355,2]
[401461632,1768240246299,-151.0,0.00017355,2]
[401461634,1768240246308,-151.0,0.00017355,2]
[401461636,1768240246317,-715.749252,0.00017355,2]
[401461638,1768240246327,-151.0,0.00017355,2]
[401461640,1768240246336,-151.0,0.00017355,2]
[401461642,1768240246345,-715.749252,0.00017355,2]
[401461644,1768240246354,-151.0,0.00017355,2]
[401461646,1768240246364,-777.804847,0.00017355,2]
[401461648,1768240246373,-151.0,0.00017355,2]
[401461649,1768240246382,-777.804847,0.00017355,2]
[401461650,1768240246391,-151.0,0.00017355,2]
[401461651,1768240246400,-777.804847,0.00017355,2]
[401461652,1768240246410,-777.804847,0.00017355,2]
[401461653,1768240246419,-151.0,0.00017355,2]
[401461654,1768240246428,-207.224269,0.00017355,2]
[401461655,1768240246437,-207.224269,0.00017355,2]
[401461656,1768240246447,-207.224269,0.00017355,2]
[401461657,1768240246457,-207.224269,0.00017355,2]
[401461658,1768240246466,-771.460055,0.00017355,2]
[401461659,1768240246476,-876.570737,0.00017355,2]
[401461660,1768240246485,-771.460055,0.00017355,2]
[401461661,1768240246495,-151.0,0.00017355,2]
[401461662,1768240246504,-876.570737,0.00017355,2]
[401461663,1768240246514,-151.0,0.00017355,2]
[401461664,1768240246523,-771.460055,0.00017355,2]
[401461665,1768240246533,-257.591853,0.00017355,2]
[401461666,1768240246542,-151.0,0.00017355,2]
[401461667,1768240246551,-876.570737,0.00017355,2]
[401461668,1768240246560,-151.0,0.00017355,2]
[401461669,1768240246569,-771.460055,0.00017355,2]
[401461670,1768240246579,-257.591853,0.00017355,2]
[401461671,1768240246589,-151.0,0.00017355,2]
[401461672,1768240246598,-876.570737,0.00017355,2]
[401461673,1768240246607,-257.591853,0.00017355,2]
[401461674,1768240246616,-156.729657,0.00017355,2]
[401461675,1768240246626,-257.591853,0.00017355,2]
[401461676,1768240246635,-151.0,0.00017355,2]
[401461677,1768240246644,-151.0,0.00017355,2]
[401461678,1768240246653,-151.0,0.00017355,2]
[401461679,1768240246662,-151.0,0.00017355,2]
[401461680,1768240246673,-151.0,0.00017355,2]
[401461681,1768240246683,-283.03324,0.00017355,2]
[401461682,1768240246693,-10421.739598,0.00017355,2]
[401461683,1768240246703,-156.283737,0.00017355,2]
[401461684,1768240246713,-151.0,0.00017355,2]
[401461685,1768240246723,-2163.53589,0.00017355,2]
[401461686,1768240246732,-10421.739598,0.00017355,2]
[401461687,1768240246743,-151.0,0.00017355,2]
[401461688,1768240246753,-2163.53589,0.00017355,2]
[401461689,1768240246763,-10421.739598,0.00017355,2]
[401461690,1768240246773,-10421.739598,0.00017355,2]
[401461691,1768240246783,-2163.53589,0.00017355,2]
[401461692,1768240246792,-949.908812,0.00017355,2]
[401461693,1768240246799,-265.615145,0.00017355,2]
[401461694,1768240246807,-2163.53589,0.00017355,2]
[401461695,1768240246816,-440.919773,0.00017355,2]
[401461696,1768240246827,-2315.94614,0.00017355,2]
[401461697,1768240246836,-949.908812,0.00017355,2]
[401461698,1768240246846,-265.615145,0.00017355,2]
[401461699,1768240246855,-440.919773,0.00017355,2]
[401461700,1768240246865,-404.421894,0.00017355,2]
[401461701,1768240246874,-949.908812,0.00017355,2]
[401461702,1768240246883,-2315.94614,0.00017355,2]
[401461703,1768240246892,-265.615145,0.00017355,2]
[401461704,1768240246901,-440.919773,0.00017355,2]
[401461705,1768240246911,-151.0,0.00017355,2]
[401461706,1768240246920,-404.421894,0.00017355,2]
[401461707,1768240246929,-949.908812,0.00017355,2]
[401461708,1768240246940,-2315.94614,0.00017355,2]
[401461709,1768240246951,-440.919773,0.00017355,2]
[401461710,1768240246960,-265.615145,0.00017355,2]
[401461711,1768240246969,-1786.277777,0.00017355,2]
[401461712,1768240246977,-151.0,0.00017355,2]
[401461713,1768240246988,-404.421894,0.00017355,2]
[401461714,1768240246997,-2315.94614,0.00017355,2]
[401461715,1768240247006,-151.0,0.00017355,2]
[401461716,1768240247017,-1786.277777,0.00017355,2]
[401461717,1768240247026,-404.421894,0.00017355,2]
[401461718,1768240247035,-237.436765,0.00017355,2]
[401461719,1768240247045,-1786.277777,0.00017355,2]
[401461720,1768240247054,-151.0,0.00017355,2]
[401461721,1768240247064,-237.436765,0.00017355,2]
[401461722,1768240247077,-151.0,0.00017355,2]
[401461723,1768240247086,-1786.277777,0.00017355,2]
[401461724,1768240247096,-237.436765,0.00017355,2]
[401461725,1768240247106,-7054.873058,0.00017355,2]
[401461726,1768240247115,-170.961963,0.00017355,2]
[401461727,1768240247125,-237.436765,0.00017355,2]
[401461728,1768240247135,-151.0,0.00017355,2]
[401461729,1768240247144,-151.0,0.00017355,2]
[401461730,1768240247153,-7054.873058,0.00017355,2]
[401461731,1768240247163,-202.183274,0.00017355,2]
[401461732,1768240247172,-1647.039821,0.00017355,2]
[401461733,1768240247181,-151.0,0.00017355,2]
[401461734,1768240247190,-7054.873058,0.00017355,2]
[401461735,1768240247199,-1647.039821,0.00017355,2]
[401461736,1768240247208,-202.183274,0.00017355,2]
[401461737,1768240247217,-151.0,0.00017355,2]
[401461738,1768240247227,-7054.873058,0.00017355,2]
[401461739,1768240247239,-1647.039821,0.00017355,2]
[401461740,1768240247249,-202.183274,0.00017355,2]
[401461741,1768240247259,-1647.039821,0.00017355,2]
[401461742,1768240247269,-202.183274,0.00017355,2]
[401461743,1768240247280,-151.0,0.00017355,2]
[401461744,1768240247289,-151.0,0.00017355,2]
[401461745,1768240247299,-151.0,0.00017355,2]
[401461746,1768240247309,-151.0,0.00017355,2]
[401461747,1768240247319,-4268.298126,0.00017355,2]
[401461748,1768240247330,-151.0,0.00017355,2]
[401461749,1768240247340,-4268.298126,0.00017355,2]
[401461750,1768240247350,-4268.298126,0.00017355,2]
[401461751,1768240247360,-151.0,0.00017355,2]
[401461752,1768240247371,-4268.298126,0.00017355,2]
[401461753,1768240247382,-151.0,0.00017355,2]
[401461754,1768240247391,-151.0,0.00017355,2]
[401461755,1768240247401,-151.0,0.00017355,2]
[401461756,1768240247410,-199.367871,0.00017355,2]
[401461757,1768240247419,-151.0,0.00017355,2]
[401461758,1768240247429,-151.0,0.00017355,2]
[401461759,1768240247439,-151.0,0.00017355,2]
[401461760,1768240247450,-151.0,0.00017355,2]
[401461761,1768240247459,-151.0,0.00017355,2]
[401461762,1768240247470,-407.78631,0.00017355,2]
[401461763,1768240247481,-407.78631,0.00017355,2]
[401461764,1768240247491,-479.875376,0.00017355,2]
[401461765,1768240247502,-585.678073,0.00017355,2]
[401461766,1768240247512,-407.78631,0.00017355,2]
[401461767,1768240247521,-479.875376,0.00017355,2]
[401461768,1768240247531,-585.678073,0.00017355,2]
[401461769,1768240247540,-479.875376,0.00017355,2]
[401461770,1768240247549,-407.78631,0.00017355,2]
[401461771,1768240247557,-585.678073,0.00017355,2]
[401461772,1768240247566,-479.875376,0.00017355,2]
[401461773,1768240247574,-585.678073,0.00017355,2]
[401461774,1768240247582,-151.0,0.00017355,2]
[401461775,1768240247592,-151.0,0.00017355,2]
[401461776,1768240247601,-151.0,0.00017355,2]
[401461777,1768240247610,-501.106021,0.00017355,2]
[401461778,1768240247619,-891.223582,0.00017355,2]
[401461779,1768240247629,-151.0,0.00017355,2]
[401461780,1768240247638,-501.106021,0.00017355,2]
[401461781,1768240247648,-361.819119,0.00017355,2]
[401461782,1768240247657,-891.223582,0.00017355,2]
[401461783,1768240247667,-151.0,0.00017355,2]
[401461784,1768240247676,-229.226321,0.00017355,2]
[401461785,1768240247685,-1903.666685,0.00017355,2]
[401461786,1768240247694,-151.0,0.00017355,2]
[401461787,1768240247704,-699.466395,0.00017355,2]
[401461788,1768240247713,-361.819119,0.00017355,2]
[401461789,1768240247722,-891.223582,0.00017355,2]
[401461790,1768240247732,-501.106021,0.00017355,2]
[401461791,1768240247741,-151.0,0.00017355,2]
[401461792,1768240247751,-229.226321,0.00017355,2]
[401461793,1768240247760,-699.466395,0.00017355,2]
[401461794,1768240247769,-151.0,0.00017355,2]
[401461795,1768240247779,-361.819119,0.00017355,2]
[401461796,1768240247788,-501.106021,0.00017355,2]
[401461797,1768240247797,-1903.666685,0.00017355,2]
[401461798,1768240247805,-334.375993,0.00017355,2]
[401461799,1768240247815,-891.223582,0.00017355,2]
[401461800,1768240247824,-151.0,0.00017355,2]